[Event "Early-Titled-Tuesday-Blitz-February-20-2024"]
[Site "Chess.com"]
[Date "2024.02.20"]
[Round "1"]
[White "tarno17"]
[Black "noblerone"]
[Result "1-0"]
[WhiteElo "2134"]
[BlackElo "2545"]
[TimeControl "180+1"]
[EndTime "8:08:17 PST"]
[Termination "tarno17 won by resignation"]

1. e4 {[%clk 0:03:00.9]} 1... c5 {[%clk 0:02:50.2]} 2. Nf3 {[%clk 0:03:00.7]}
2... e6 {[%clk 0:02:49.9]} 3. d3 {[%clk 0:02:59.3]} 3... Nc6 {[%clk 0:02:45.8]}
4. g3 {[%clk 0:02:58.3]} 4... d5 {[%clk 0:02:39.2]} 5. Nc3 {[%clk 0:02:58]} 5...
Nf6 {[%clk 0:02:36.9]} 6. exd5 {[%clk 0:02:43]} 6... exd5 {[%clk 0:02:36]} 7.
Bg2 {[%clk 0:02:43.3]} 7... Be7 {[%clk 0:02:28.6]} 8. O-O {[%clk 0:02:42.8]}
8... O-O {[%clk 0:02:23.9]} 9. h3 {[%clk 0:02:37.3]} 9... h6 {[%clk 0:02:20.9]}
10. d4 {[%clk 0:02:37.2]} 10... Bf5 {[%clk 0:02:18.4]} 11. Be3 {[%clk
0:02:21.2]} 11... c4 {[%clk 0:01:33.5]} 12. a3 {[%clk 0:02:13.1]} 12... a6
{[%clk 0:01:31]} 13. Nh4 {[%clk 0:02:07]} 13... Bh7 {[%clk 0:01:29]} 14. Rc1
{[%clk 0:01:56.1]} 14... b5 {[%clk 0:01:25.5]} 15. f4 {[%clk 0:01:45.1]} 15...
Rb8 {[%clk 0:01:03.8]} 16. f5 {[%clk 0:01:33.5]} 16... a5 {[%clk 0:00:55]} 17.
Ne2 {[%clk 0:01:25.5]} 17... b4 {[%clk 0:00:33.2]} 18. Nf4 {[%clk 0:00:53.9]}
18... bxa3 {[%clk 0:00:28.4]} 19. bxa3 {[%clk 0:00:53.9]} 19... Rb2 {[%clk
0:00:27.7]} 20. Nh5 {[%clk 0:00:45.6]} 20... Bxa3 {[%clk 0:00:25.5]} 21. Nxf6+
{[%clk 0:00:42.9]} 21... Qxf6 {[%clk 0:00:26.4]} 22. Bxd5 {[%clk 0:00:39.7]}
22... Rd8 {[%clk 0:00:24.9]} 23. Bxc6 {[%clk 0:00:36.3]} 23... Qxc6 {[%clk
0:00:21.3]} 24. f6 {[%clk 0:00:36.6]} 24... Qe6 {[%clk 0:00:13.3]} 25. Qf3
{[%clk 0:00:33.4]} 25... g5 {[%clk 0:00:09.5]} 26. Ng2 {[%clk 0:00:31.4]} 26...
Re8 {[%clk 0:00:06.9]} 27. Ra1 {[%clk 0:00:30.4]} 27... Bb4 {[%clk 0:00:06.6]}
28. h4 {[%clk 0:00:23.2]} 28... Rxc2 {[%clk 0:00:04.3]} 29. hxg5 {[%clk
0:00:22.4]} 29... Qh3 {[%clk 0:00:04.5]} 30. Bf2 {[%clk 0:00:15.5]} 30... Be4
{[%clk 0:00:03]} 31. Nf4 {[%clk 0:00:12.2]} 31... Bxf3 {[%clk 0:00:02.5]} 32.
Nxh3 {[%clk 0:00:12.1]} 32... Bd5 {[%clk 0:00:02.8]} 33. gxh6 {[%clk 0:00:11.8]}
33... Kh7 {[%clk 0:00:03.3]} 34. Ng5+ {[%clk 0:00:11.7]} 34... Kg6 {[%clk
0:00:04]} 35. Nh3 {[%clk 0:00:09.2]} 35... Kxh6 {[%clk 0:00:03.8]} 36. Nf4
{[%clk 0:00:09.3]} 36... Kh7 {[%clk 0:00:02.7]} 37. Nxd5 {[%clk 0:00:09.2]}
37... Ree2 {[%clk 0:00:02.7]} 38. Nf4 {[%clk 0:00:06.9]} 38... Red2 {[%clk
0:00:02.4]} 39. Rad1 {[%clk 0:00:07]} 39... Rxd1 {[%clk 0:00:02.5]} 40. Rxd1
{[%clk 0:00:07.9]} 40... c3 {[%clk 0:00:03]} 41. d5 {[%clk 0:00:08.3]} 41... Rd2
{[%clk 0:00:02.7]} 42. Rc1 {[%clk 0:00:04.2]} 42... a4 {[%clk 0:00:03]} 43. Be3
{[%clk 0:00:03.1]} 43... Rb2 {[%clk 0:00:01.9]} 44. Nd3 {[%clk 0:00:03]} 44...
Rb3 {[%clk 0:00:01.9]} 45. Nxb4 {[%clk 0:00:03.5]} 45... Rxb4 {[%clk 0:00:01.7]}
46. Rxc3 {[%clk 0:00:04.2]} 46... Rb3 {[%clk 0:00:01.1]} 47. Rxb3 {[%clk
0:00:04.2]} 47... axb3 {[%clk 0:00:02]} 48. Bd4 {[%clk 0:00:04.9]} 48... Kg6
{[%clk 0:00:02.8]} 49. Kf2 {[%clk 0:00:05.1]} 49... Kf5 {[%clk 0:00:03.2]} 50.
Ke3 {[%clk 0:00:05.6]} 50... Kg4 {[%clk 0:00:02.7]} 51. Kf2 {[%clk 0:00:05.3]}
51... Kf5 {[%clk 0:00:03.6]} 52. Kf3 {[%clk 0:00:05.8]} 52... Kg6 {[%clk
0:00:02.9]} 53. g4 {[%clk 0:00:06.1]} 53... Kg5 {[%clk 0:00:03.2]} 54. Kg3
{[%clk 0:00:05.8]} 54... Kg6 {[%clk 0:00:04.1]} 55. Kf4 {[%clk 0:00:06.3]} 55...
Kh6 {[%clk 0:00:04.3]} 56. g5+ {[%clk 0:00:06.5]} 56... Kg6 {[%clk 0:00:05.2]}
57. Kg4 {[%clk 0:00:06.5]} 57... Kh7 {[%clk 0:00:05.2]} 58. Kf5 {[%clk
0:00:06.5]} 58... Kg8 {[%clk 0:00:06]} 59. d6 {[%clk 0:00:06.9]} 59... Kf8
{[%clk 0:00:06.9]} 60. d7 {[%clk 0:00:07.2]} 60... Kg8 {[%clk 0:00:07.6]} 61.
d8=Q+ {[%clk 0:00:07.6]} 61... Kh7 {[%clk 0:00:08.5]} 62. Qf8 {[%clk 0:00:07.6]}
1-0

[Event "Early-Titled-Tuesday-Blitz-February-20-2024"]
[Site "Chess.com"]
[Date "2024.02.20"]
[Round "1"]
[White "platy3"]
[Black "DvaHrasta"]
[Result "1-0"]
[WhiteElo "2966"]
[BlackElo "2514"]
[TimeControl "180+1"]
[EndTime "8:08:19 PST"]
[Termination "platy3 won on time"]

1. e4 {[%clk 0:03:00.9]} 1... c6 {[%clk 0:02:59.2]} 2. d4 {[%clk 0:02:58.3]}
2... d5 {[%clk 0:02:58.9]} 3. e5 {[%clk 0:02:59]} 3... c5 {[%clk 0:02:59]} 4.
Nf3 {[%clk 0:02:57.8]} 4... cxd4 {[%clk 0:02:57.9]} 5. Qxd4 {[%clk 0:02:58.7]}
5... Nc6 {[%clk 0:02:57.4]} 6. Qf4 {[%clk 0:02:58.9]} 6... e6 {[%clk 0:02:53.7]}
7. Bd3 {[%clk 0:02:58.4]} 7... Nge7 {[%clk 0:02:47.2]} 8. Nc3 {[%clk 0:02:52.4]}
8... Ng6 {[%clk 0:02:45.3]} 9. Qg3 {[%clk 0:02:52.1]} 9... a6 {[%clk 0:02:39]}
10. h4 {[%clk 0:02:48.2]} 10... Qc7 {[%clk 0:02:32.9]} 11. Bxg6 {[%clk
0:02:37.2]} 11... hxg6 {[%clk 0:02:31.4]} 12. O-O {[%clk 0:02:37.8]} 12... b5
{[%clk 0:02:25.9]} 13. Bg5 {[%clk 0:02:36.1]} 13... b4 {[%clk 0:02:21.6]} 14.
Ne2 {[%clk 0:02:35.2]} 14... Bc5 {[%clk 0:02:03.5]} 15. Nf4 {[%clk 0:02:33.6]}
15... Ne7 {[%clk 0:01:56.6]} 16. Nd3 {[%clk 0:02:25.3]} 16... Nf5 {[%clk
0:01:51.5]} 17. Qg4 {[%clk 0:02:23.5]} 17... a5 {[%clk 0:01:47.8]} 18. Rfc1
{[%clk 0:01:57.3]} 18... Ba6 {[%clk 0:01:45.6]} 19. Nxc5 {[%clk 0:01:53.9]}
19... Qxc5 {[%clk 0:01:43.8]} 20. c3 {[%clk 0:01:54.6]} 20... Qc4 {[%clk
0:01:33.2]} 21. Qxc4 {[%clk 0:01:48.6]} 21... Bxc4 {[%clk 0:01:28.4]} 22. g3
{[%clk 0:01:26.6]} 22... O-O {[%clk 0:01:12.5]} 23. Nd2 {[%clk 0:01:26.2]} 23...
f6 {[%clk 0:01:07.4]} 24. Bf4 {[%clk 0:01:24.4]} 24... Rfc8 {[%clk 0:00:59.7]}
25. f3 {[%clk 0:01:05.9]} 25... Bb5 {[%clk 0:00:49]} 26. Kf2 {[%clk 0:01:03.4]}
26... bxc3 {[%clk 0:00:43.3]} 27. bxc3 {[%clk 0:01:00.8]} 27... Bc4 {[%clk
0:00:38.6]} 28. a4 {[%clk 0:00:44.3]} 28... Kf7 {[%clk 0:00:33.9]} 29. Rab1
{[%clk 0:00:44.1]} 29... Ra7 {[%clk 0:00:32.9]} 30. Rb6 {[%clk 0:00:43]} 30...
Ne7 {[%clk 0:00:25.3]} 31. Re1 {[%clk 0:00:25.2]} 31... Nc6 {[%clk 0:00:23]} 32.
Nxc4 {[%clk 0:00:24.4]} 32... dxc4 {[%clk 0:00:22.1]} 33. exf6 {[%clk
0:00:21.6]} 33... gxf6 {[%clk 0:00:21.2]} 34. Rd1 {[%clk 0:00:22]} 34... e5
{[%clk 0:00:20.2]} 35. Be3 {[%clk 0:00:22.4]} 35... Re7 {[%clk 0:00:16.6]} 36.
Rd6 {[%clk 0:00:21.2]} 36... Re6 {[%clk 0:00:14.9]} 37. Rb7+ {[%clk 0:00:18.2]}
37... Re7 {[%clk 0:00:14.4]} 38. Rb5 {[%clk 0:00:17.4]} 38... Re6 {[%clk
0:00:11.9]} 39. Rdd5 {[%clk 0:00:17.9]} 39... Ne7 {[%clk 0:00:10]} 40. Rd7
{[%clk 0:00:16.2]} 40... Ke8 {[%clk 0:00:10.1]} 41. Ra7 {[%clk 0:00:15.4]} 41...
Rd8 {[%clk 0:00:06.3]} 42. Raxa5 {[%clk 0:00:13.2]} 42... Rd3 {[%clk 0:00:06.4]}
43. Ra8+ {[%clk 0:00:09]} 43... Kf7 {[%clk 0:00:05.9]} 44. a5 {[%clk 0:00:09.6]}
44... Rxc3 {[%clk 0:00:05.7]} 45. a6 {[%clk 0:00:10.3]} 45... Rc2+ {[%clk
0:00:06]} 46. Kf1 {[%clk 0:00:10]} 46... Ra2 {[%clk 0:00:05.3]} 47. a7 {[%clk
0:00:10]} 47... c3 {[%clk 0:00:04.9]} 48. Rh8 {[%clk 0:00:05.7]} 48... Rea6
{[%clk 0:00:03.8]} 49. Rbb8 {[%clk 0:00:04.1]} 49... Nd5 {[%clk 0:00:02.4]} 50.
Bf2 {[%clk 0:00:03.9]} 50... c2 {[%clk 0:00:02.3]} 51. Rhc8 {[%clk 0:00:04.6]}
51... Ra1+ {[%clk 0:00:01.6]} 52. Kg2 {[%clk 0:00:05.2]} 52... c1=Q {[%clk
0:00:01.7]} 53. Rxc1 {[%clk 0:00:05.8]} 53... Rxc1 {[%clk 0:00:01.8]} 54. a8=Q
{[%clk 0:00:06.2]} 54... Rxa8 {[%clk 0:00:01.9]} 55. Rxa8 {[%clk 0:00:07.1]}
55... Rc2 {[%clk 0:00:02.1]} 56. Ra7+ {[%clk 0:00:07.1]} 56... Ke6 {[%clk
0:00:02.2]} 57. Kg1 {[%clk 0:00:07.9]} 57... Nc3 {[%clk 0:00:01.7]} 58. Rg7
{[%clk 0:00:06.6]} 1-0

[Event "Early-Titled-Tuesday-Blitz-February-20-2024"]
[Site "Chess.com"]
[Date "2024.02.20"]
[Round "1"]
[White "FaustinoOro"]
[Black "AwareIdea"]
[Result "0-1"]
[WhiteElo "2903"]
[BlackElo "2523"]
[TimeControl "180+1"]
[EndTime "8:08:20 PST"]
[Termination "AwareIdea won by resignation"]

1. e4 {[%clk 0:03:00.9]} 1... e5 {[%clk 0:02:59.8]} 2. Nf3 {[%clk 0:03:00.7]}
2... Nc6 {[%clk 0:02:59.7]} 3. Bb5 {[%clk 0:03:00.8]} 3... Nf6 {[%clk
0:02:59.6]} 4. d3 {[%clk 0:03:00.6]} 4... Bc5 {[%clk 0:02:59.4]} 5. c3 {[%clk
0:02:58.7]} 5... d6 {[%clk 0:02:58.7]} 6. O-O {[%clk 0:02:57.7]} 6... O-O {[%clk
0:02:56.9]} 7. Nbd2 {[%clk 0:02:57.1]} 7... Ne7 {[%clk 0:02:54.2]} 8. d4 {[%clk
0:02:55.3]} 8... exd4 {[%clk 0:02:48.1]} 9. cxd4 {[%clk 0:02:56.2]} 9... Bb6
{[%clk 0:02:48.9]} 10. Bd3 {[%clk 0:02:50.8]} 10... Bg4 {[%clk 0:02:46.4]} 11.
h3 {[%clk 0:02:48.3]} 11... Bh5 {[%clk 0:02:46.5]} 12. Qc2 {[%clk 0:02:47.3]}
12... Bg6 {[%clk 0:02:43]} 13. Re1 {[%clk 0:02:30.4]} 13... Re8 {[%clk
0:02:38.7]} 14. Nc4 {[%clk 0:02:18.1]} 14... d5 {[%clk 0:02:31.8]} 15. Nxb6
{[%clk 0:02:17.6]} 15... axb6 {[%clk 0:02:32.7]} 16. e5 {[%clk 0:02:13.8]} 16...
Ne4 {[%clk 0:02:32.7]} 17. Bf4 {[%clk 0:01:52]} 17... c5 {[%clk 0:02:23.9]} 18.
b3 {[%clk 0:01:34]} 18... Nc6 {[%clk 0:02:21]} 19. Qb2 {[%clk 0:01:29.3]} 19...
f6 {[%clk 0:02:04.9]} 20. exf6 {[%clk 0:01:23.6]} 20... Qxf6 {[%clk 0:02:05.8]}
21. Be5 {[%clk 0:01:24.2]} 21... Nxe5 {[%clk 0:01:54.5]} 22. Nxe5 {[%clk
0:01:25.1]} 22... cxd4 {[%clk 0:01:45.1]} 23. Ng4 {[%clk 0:01:24.1]} 23... Qf4
{[%clk 0:01:36.8]} 24. Qxd4 {[%clk 0:01:20]} 24... h5 {[%clk 0:01:21]} 25. Qxd5+
{[%clk 0:01:01.1]} 25... Kh7 {[%clk 0:01:20.7]} 26. Bxe4 {[%clk 0:00:53.9]}
26... Rxe4 {[%clk 0:00:55.3]} 27. Rxe4 {[%clk 0:00:52.7]} 27... Qxe4 {[%clk
0:00:56.2]} 28. Qxe4 {[%clk 0:00:52.4]} 28... Bxe4 {[%clk 0:00:57.1]} 29. Ne3
{[%clk 0:00:51.8]} 29... b5 {[%clk 0:00:48.7]} 30. f3 {[%clk 0:00:50.7]} 30...
Bg6 {[%clk 0:00:48.5]} 31. Nd5 {[%clk 0:00:46.2]} 31... Bf7 {[%clk 0:00:46.5]}
32. Nc7 {[%clk 0:00:43.9]} 32... Ra5 {[%clk 0:00:42.7]} 33. b4 {[%clk
0:00:38.5]} 33... Ra4 {[%clk 0:00:34]} 34. a3 {[%clk 0:00:38.1]} 34... Bc4
{[%clk 0:00:32.7]} 35. Kf2 {[%clk 0:00:36.9]} 35... b6 {[%clk 0:00:31.5]} 36.
Ne8 {[%clk 0:00:30.8]} 36... Ra7 {[%clk 0:00:27.7]} 37. Nd6 {[%clk 0:00:28.9]}
37... Rd7 {[%clk 0:00:25.2]} 38. Ne4 {[%clk 0:00:29.2]} 38... Rd3 {[%clk
0:00:20.1]} 39. a4 {[%clk 0:00:21.9]} 39... bxa4 {[%clk 0:00:20.6]} 40. Rxa4
{[%clk 0:00:22.8]} 40... Rb3 {[%clk 0:00:20.6]} 41. Kg3 {[%clk 0:00:14.7]} 41...
Rb2 {[%clk 0:00:18.3]} 42. Ra7 {[%clk 0:00:07.3]} 42... Bf1 {[%clk 0:00:17.2]}
43. Nf2 {[%clk 0:00:06.8]} 43... h4+ {[%clk 0:00:16.9]} 44. Kxh4 {[%clk
0:00:06]} 44... Rxf2 {[%clk 0:00:17.8]} 45. g4 {[%clk 0:00:05]} 45... b5 {[%clk
0:00:17.5]} 46. Kg3 {[%clk 0:00:04.4]} 46... Rg2+ {[%clk 0:00:17.4]} 47. Kf4
{[%clk 0:00:04.8]} 47... Rb2 {[%clk 0:00:16.1]} 48. Kg5 {[%clk 0:00:04.2]} 48...
Rxb4 {[%clk 0:00:16.1]} 49. h4 {[%clk 0:00:04.7]} 49... Be2 {[%clk 0:00:15.2]}
50. f4 {[%clk 0:00:04.4]} 50... Rc4 {[%clk 0:00:14.4]} 51. h5 {[%clk 0:00:04.4]}
51... Rc5+ {[%clk 0:00:14.2]} 52. f5 {[%clk 0:00:04.9]} 52... Rc6 {[%clk
0:00:14]} 53. Rb7 {[%clk 0:00:03.8]} 53... Bc4 {[%clk 0:00:13.2]} 54. Kf4 {[%clk
0:00:02.1]} 54... Be2 {[%clk 0:00:12.6]} 55. Kg5 {[%clk 0:00:02]} 55... Rc4
{[%clk 0:00:12.3]} 56. f6 {[%clk 0:00:01.6]} 56... Rxg4+ {[%clk 0:00:12.5]} 57.
Kf5 {[%clk 0:00:02.4]} 57... Rg2 {[%clk 0:00:11.6]} 58. f7 {[%clk 0:00:02.9]}
58... Rf2+ {[%clk 0:00:11.8]} 59. Ke6 {[%clk 0:00:02.7]} 59... Bc4+ {[%clk
0:00:12]} 60. Kd6 {[%clk 0:00:02.9]} 60... Rxf7 {[%clk 0:00:12.2]} 0-1

[Event "Early-Titled-Tuesday-Blitz-February-20-2024"]
[Site "Chess.com"]
[Date "2024.02.20"]
[Round "1"]
[White "Rakhmanov_Aleksandr"]
[Black "Mr_ruthless"]
[Result "1-0"]
[WhiteElo "2868"]
[BlackElo "2483"]
[TimeControl "180+1"]
[EndTime "8:08:28 PST"]
[Termination "Rakhmanov_Aleksandr won by resignation"]

1. c4 {[%clk 0:02:54.8]} 1... c5 {[%clk 0:02:58]} 2. Nc3 {[%clk 0:02:17.7]} 2...
Nc6 {[%clk 0:02:57.8]} 3. Nf3 {[%clk 0:02:17.3]} 3... g6 {[%clk 0:02:57.7]} 4.
e3 {[%clk 0:02:16.8]} 4... Bg7 {[%clk 0:02:51.1]} 5. d4 {[%clk 0:02:16.4]} 5...
cxd4 {[%clk 0:02:49]} 6. exd4 {[%clk 0:02:15.3]} 6... d6 {[%clk 0:02:40.1]} 7.
d5 {[%clk 0:02:14.9]} 7... Ne5 {[%clk 0:02:39.7]} 8. Nxe5 {[%clk 0:02:14.8]}
8... Bxe5 {[%clk 0:02:40.1]} 9. Be2 {[%clk 0:02:15.5]} 9... Bg7 {[%clk
0:02:31.5]} 10. O-O {[%clk 0:02:14.6]} 10... Nf6 {[%clk 0:02:32.1]} 11. Be3
{[%clk 0:02:02.7]} 11... O-O {[%clk 0:02:32.5]} 12. Qd2 {[%clk 0:02:00.4]} 12...
Bf5 {[%clk 0:02:31.5]} 13. Bd4 {[%clk 0:01:49.7]} 13... Qd7 {[%clk 0:02:30.2]}
14. Rfe1 {[%clk 0:01:49.4]} 14... Rfc8 {[%clk 0:02:28.9]} 15. Bf1 {[%clk
0:01:48.5]} 15... e5 {[%clk 0:02:02.5]} 16. dxe6 {[%clk 0:01:46.1]} 16... Bxe6
{[%clk 0:02:01.7]} 17. b3 {[%clk 0:01:36.9]} 17... d5 {[%clk 0:01:54.7]} 18.
cxd5 {[%clk 0:00:55.1]} 18... Nxd5 {[%clk 0:01:55.1]} 19. Bxg7 {[%clk
0:00:48.5]} 19... Kxg7 {[%clk 0:01:56]} 20. Ne4 {[%clk 0:00:32.8]} 20... Bf5
{[%clk 0:01:04.4]} 21. Rad1 {[%clk 0:00:26.3]} 21... Nf6 {[%clk 0:00:37.5]} 22.
Qb2 {[%clk 0:00:14.2]} 22... Qe7 {[%clk 0:00:19.6]} 23. Nd6 {[%clk 0:00:11.9]}
23... Qf8 {[%clk 0:00:15.5]} 24. Nxc8 {[%clk 0:00:05.6]} 24... Rxc8 {[%clk
0:00:15.4]} 25. Rc1 {[%clk 0:00:06]} 25... Rd8 {[%clk 0:00:15.4]} 26. h3 {[%clk
0:00:05.3]} 26... Qd6 {[%clk 0:00:15.9]} 27. Qe2 {[%clk 0:00:04.7]} 27... h5
{[%clk 0:00:15.8]} 28. Red1 {[%clk 0:00:05]} 28... Qb6 {[%clk 0:00:15.2]} 29.
Rxd8 {[%clk 0:00:04.9]} 29... Qxd8 {[%clk 0:00:16]} 30. Qb2 {[%clk 0:00:04.8]}
30... Qb6 {[%clk 0:00:15.2]} 31. Rd1 {[%clk 0:00:04.7]} 31... Kh7 {[%clk
0:00:15]} 32. Qe5 {[%clk 0:00:03.8]} 32... Ne4 {[%clk 0:00:14.1]} 33. Qf4 {[%clk
0:00:04.5]} 33... Nc3 {[%clk 0:00:09.7]} 34. Rd2 {[%clk 0:00:04.5]} 34... Qa5
{[%clk 0:00:08.1]} 35. Qd4 {[%clk 0:00:03.4]} 35... Ne4 {[%clk 0:00:07]} 36. Re2
{[%clk 0:00:03.3]} 36... Nc3 {[%clk 0:00:06.7]} 37. Rd2 {[%clk 0:00:03.9]} 37...
Be6 {[%clk 0:00:07]} 38. b4 {[%clk 0:00:03.8]} 38... Qa3 {[%clk 0:00:06.9]} 39.
Rd3 {[%clk 0:00:04.1]} 39... Nb5 {[%clk 0:00:07.2]} 40. Rxa3 {[%clk 0:00:03.9]}
40... Nxd4 {[%clk 0:00:08]} 41. Rxa7 {[%clk 0:00:04.6]} 41... Bd5 {[%clk
0:00:08.2]} 42. a3 {[%clk 0:00:04.6]} 42... Ne6 {[%clk 0:00:07.1]} 43. Ra5
{[%clk 0:00:04.9]} 43... Bc6 {[%clk 0:00:06.6]} 44. Re5 {[%clk 0:00:05.5]} 44...
Kg7 {[%clk 0:00:05.5]} 45. Re3 {[%clk 0:00:05.9]} 45... Kf6 {[%clk 0:00:06]} 46.
Rc3 {[%clk 0:00:06.2]} 46... Nd4 {[%clk 0:00:06.6]} 47. Bc4 {[%clk 0:00:06.6]}
47... Ke5 {[%clk 0:00:07.2]} 48. Re3+ {[%clk 0:00:05.2]} 48... Kd6 {[%clk
0:00:06.9]} 49. Bxf7 {[%clk 0:00:05.4]} 49... g5 {[%clk 0:00:07]} 50. Bxh5
{[%clk 0:00:05.5]} 50... Nc2 {[%clk 0:00:07.2]} 51. Bf3 {[%clk 0:00:05.6]} 51...
Nxe3 {[%clk 0:00:06.9]} 52. fxe3 {[%clk 0:00:06.5]} 52... Bd7 {[%clk 0:00:07.6]}
53. Kh2 {[%clk 0:00:06.4]} 53... b6 {[%clk 0:00:07.5]} 54. g3 {[%clk 0:00:06.9]}
54... Ke5 {[%clk 0:00:08.2]} 55. h4 {[%clk 0:00:07.4]} 55... gxh4 {[%clk
0:00:08.4]} 56. gxh4 {[%clk 0:00:08.3]} 56... Bf5 {[%clk 0:00:06]} 57. Kg3
{[%clk 0:00:08.8]} 1-0

[Event "Early-Titled-Tuesday-Blitz-February-20-2024"]
[Site "Chess.com"]
[Date "2024.02.20"]
[Round "1"]
[White "Zarinur"]
[Black "Eagle_2019"]
[Result "1/2-1/2"]
[WhiteElo "2498"]
[BlackElo "2867"]
[TimeControl "180+1"]
[EndTime "8:08:31 PST"]
[Termination "Game drawn - insufficient material"]

1. e4 {[%clk 0:03:00.9]} 1... c6 {[%clk 0:02:54.4]} 2. d4 {[%clk 0:03:00.4]}
2... d5 {[%clk 0:02:52.9]} 3. exd5 {[%clk 0:02:52]} 3... cxd5 {[%clk 0:02:52.5]}
4. Bd3 {[%clk 0:02:33.8]} 4... Nc6 {[%clk 0:02:51.2]} 5. c3 {[%clk 0:02:33.4]}
5... Nf6 {[%clk 0:02:49.2]} 6. h3 {[%clk 0:02:33.7]} 6... g6 {[%clk 0:02:46.3]}
7. Nf3 {[%clk 0:02:33.1]} 7... Bf5 {[%clk 0:02:37.2]} 8. Be2 {[%clk 0:02:30]}
8... e6 {[%clk 0:02:33.2]} 9. Bf4 {[%clk 0:02:26.9]} 9... Bd6 {[%clk 0:02:30.3]}
10. Bxd6 {[%clk 0:02:11.9]} 10... Qxd6 {[%clk 0:02:29.7]} 11. O-O {[%clk
0:02:12.8]} 11... h5 {[%clk 0:02:25.3]} 12. Nbd2 {[%clk 0:02:08.6]} 12... Rg8
{[%clk 0:02:19.2]} 13. Bb5 {[%clk 0:01:47.3]} 13... Kf8 {[%clk 0:02:17.6]} 14.
Bxc6 {[%clk 0:01:46.8]} 14... bxc6 {[%clk 0:02:16.9]} 15. Ne5 {[%clk 0:01:42.7]}
15... g5 {[%clk 0:02:14]} 16. Qa4 {[%clk 0:01:34.1]} 16... g4 {[%clk 0:02:11.4]}
17. h4 {[%clk 0:01:33.2]} 17... c5 {[%clk 0:02:06.7]} 18. g3 {[%clk 0:01:26.5]}
18... Kg7 {[%clk 0:02:04.1]} 19. Qc6 {[%clk 0:01:20.8]} 19... Qxc6 {[%clk
0:01:52.6]} 20. Nxc6 {[%clk 0:01:21.7]} 20... Rgc8 {[%clk 0:01:48.1]} 21. Ne7
{[%clk 0:01:19.9]} 21... Rcb8 {[%clk 0:01:47.5]} 22. Nxf5+ {[%clk 0:01:18]}
22... exf5 {[%clk 0:01:48.4]} 23. Rab1 {[%clk 0:01:13.3]} 23... cxd4 {[%clk
0:01:46.8]} 24. cxd4 {[%clk 0:01:12.7]} 24... Rb4 {[%clk 0:01:46]} 25. Nb3
{[%clk 0:01:11.2]} 25... a5 {[%clk 0:01:43.9]} 26. Nc5 {[%clk 0:00:36.5]} 26...
Rxd4 {[%clk 0:01:39]} 27. Rfd1 {[%clk 0:00:35.3]} 27... Rc4 {[%clk 0:01:35.2]}
28. Rbc1 {[%clk 0:00:29.9]} 28... Rxc1 {[%clk 0:01:31.9]} 29. Rxc1 {[%clk
0:00:30.8]} 29... Rc8 {[%clk 0:01:32.4]} 30. Ne6+ {[%clk 0:00:25.6]} 30... fxe6
{[%clk 0:01:31.7]} 31. Rxc8 {[%clk 0:00:26.5]} 31... d4 {[%clk 0:01:28]} 32. Rc4
{[%clk 0:00:19.6]} 32... e5 {[%clk 0:01:26.6]} 33. Rc5 {[%clk 0:00:14]} 33... d3
{[%clk 0:01:25]} 34. Kf1 {[%clk 0:00:13.4]} 34... Ne4 {[%clk 0:01:23.2]} 35.
Rxe5 {[%clk 0:00:12]} 35... Nd2+ {[%clk 0:01:20.9]} 36. Kg2 {[%clk 0:00:11.2]}
36... Nc4 {[%clk 0:01:20.7]} 37. Rd5 {[%clk 0:00:10.8]} 37... Nxb2 {[%clk
0:01:19]} 38. a4 {[%clk 0:00:09.3]} 38... Kf6 {[%clk 0:01:16.6]} 39. Kf1 {[%clk
0:00:09.8]} 39... Ke6 {[%clk 0:01:15.5]} 40. Rd8 {[%clk 0:00:09.6]} 40... Ke5
{[%clk 0:01:14.6]} 41. Ke1 {[%clk 0:00:10.1]} 41... Ke4 {[%clk 0:01:12.6]} 42.
Kd2 {[%clk 0:00:10.3]} 42... Nc4+ {[%clk 0:01:07.7]} 43. Kc3 {[%clk 0:00:09.6]}
43... Nb6 {[%clk 0:01:07.7]} 44. Rxd3 {[%clk 0:00:05.6]} 44... Nxa4+ {[%clk
0:01:05.9]} 45. Kd2 {[%clk 0:00:04]} 45... Nc5 {[%clk 0:01:01.9]} 46. Rc3 {[%clk
0:00:04.3]} 46... Kd4 {[%clk 0:00:59.6]} 47. f3 {[%clk 0:00:04.1]} 47... a4
{[%clk 0:00:58.4]} 48. Kc2 {[%clk 0:00:04]} 48... Kd5 {[%clk 0:00:55.1]} 49.
fxg4 {[%clk 0:00:04.3]} 49... fxg4 {[%clk 0:00:55]} 50. Kb2 {[%clk 0:00:04.7]}
50... Kd4 {[%clk 0:00:53.7]} 51. Ra3 {[%clk 0:00:03.4]} 51... Nd3+ {[%clk
0:00:52.5]} 52. Kc2 {[%clk 0:00:03.4]} 52... Nc5 {[%clk 0:00:51]} 53. Rc3 {[%clk
0:00:02.6]} 53... Ne4 {[%clk 0:00:50.1]} 54. Ra3 {[%clk 0:00:03.1]} 54... Kd5
{[%clk 0:00:48.4]} 55. Kd3 {[%clk 0:00:03.1]} 55... Nxg3 {[%clk 0:00:47.1]} 56.
Rxa4 {[%clk 0:00:03.1]} 56... Ke5 {[%clk 0:00:46.6]} 57. Ke3 {[%clk 0:00:03.5]}
57... Nf5+ {[%clk 0:00:45.8]} 58. Kf2 {[%clk 0:00:04.2]} 58... Nxh4 {[%clk
0:00:42.5]} 59. Ra5+ {[%clk 0:00:04.7]} 59... Kf4 {[%clk 0:00:41.8]} 60. Rxh5
{[%clk 0:00:05.6]} 60... g3+ {[%clk 0:00:40.3]} 61. Kf1 {[%clk 0:00:04]} 61...
Nf3 {[%clk 0:00:35.3]} 62. Kg2 {[%clk 0:00:03.2]} 62... Ne1+ {[%clk 0:00:35.3]}
63. Kf1 {[%clk 0:00:03]} 63... Nf3 {[%clk 0:00:32.9]} 64. Kg2 {[%clk 0:00:03]}
64... Ne1+ {[%clk 0:00:32.7]} 65. Kf1 {[%clk 0:00:03.4]} 65... Nc2 {[%clk
0:00:32.8]} 66. Rh4+ {[%clk 0:00:02.5]} 66... Kf3 {[%clk 0:00:32.7]} 67. Rh3
{[%clk 0:00:02.6]} 67... Ne3+ {[%clk 0:00:31.1]} 68. Kg1 {[%clk 0:00:02.7]}
68... Nf5 {[%clk 0:00:31.7]} 69. Rxg3+ {[%clk 0:00:03.6]} 69... Nxg3 {[%clk
0:00:32]} 1/2-1/2